Cogmind - Beta 13 @@@ ROGUE MODE // 2024.04.03 @ 20:31:29 Player: Denialbot Result: Self-destructed Performance ------------- Evolutions (1) 500 Regions Visited (2) 400 Robots Destroyed (41) 205 Value Destroyed (941) 941 Prototype IDs (4) 80 Alien Tech Used (0) 0 Bonus (0) 0 TOTAL SCORE: 2126 Bonus ------- None Cogmind --------- Core Integrity 85/400 Matter 140/300 Energy 265/265 System Corruption 2% Temperature Cool (0) Movement Core (150) Ox2 Location -9/Materials Parts ------- > --- POWER (2) -------- Improved Ion Engine > --- PROPULSION (3) --- (None) > --- UTILITY (2) ------ Signal Interpreter Seismic Detector > --- WEAPON (2) ------- (None) > --- INVENTORY (5) ---- Weight Redist. System ECM Suite Propulsion Shielding Light Assault Rifle Peak State ------------ > --- POWER ------------ Light Ion Engine Light Ion Engine > --- PROPULSION ------- Flight Unit Flight Unit Flight Unit > --- UTILITY ---------- Signal Interpreter Propulsion Shielding > --- WEAPON ----------- Light Assault Rifle Shotgun > --- INVENTORY -------- ECM Suite Light Assault Rifle Light Assault Rifle Light Assault Rifle [Rating: 10] Favorites ----------- Power Light Ion Engine Engine Light Ion Engine Power Core Light Nuclear Core Propulsion Flight Unit Wheel Wheel Hover Unit Hover Unit Flight Unit Flight Unit Utility Signal Interpreter Device Heat Sink Processor Signal Interpreter Protection Propulsion Shielding Weapon Light Assault Rifle Energy Gun Backup Laser I Ballistic Gun Light Assault Rifle Launcher Rocket Launcher Build | -11 -10 -9 ------- Run | Yrd Mat Mat Slots Evolved 2 | . . 2 Power 1 | . . 1 Propulsion 1 | . . 1 Utility . | . . . Weapon . | . . . Parts Attached 33 | 5 14 14 Power 8 | 1 3 4 Engine 7 | 1 2 4 Core 1 | . 1 . Reactor . | . . . Propulsion 11 | 2 4 5 Treads . | . . . Leg . | . . . Wheel 3 | 2 1 . Hover 1 | . . 1 Flight 7 | . 3 4 Utility 5 | . 4 1 Device 3 | . 2 1 Storage . | . . . Processor 1 | . 1 . Hackware . | . . . Protection 1 | . 1 . Artifact . | . . . Weapon 9 | 2 3 4 Energy Gun . | . . . Energy Cannon . | . . . Ballistic Gun 8 | 2 3 3 Ballistic Cannon . | . . . Launcher 1 | . . 1 Special Weapon . | . . . Impact Weapon . | . . . Slashing Weapon . | . . . Piercing Weapon . | . . . Special Melee Weapon . | . . . Unidentified Prototypes . | . . . Parts Lost 12 | . . 12 Power 1 | . . 1 Propulsion 7 | . . 7 Utility . | . . . Weapon 4 | . . 4 Highest Loss Streak 5 | . . 5 To Critical Strikes . | . . . Average Slot Usage (%) 83 | . 83 83 Engine 13 | . 8 17 Core 2 | . 5 . Wheel 8 | . 19 . Hover 2 | . . 3 Flight 14 | . 6 19 Device 4 | . 9 1 Processor 7 | . 2 11 Protection 6 | . 2 9 Ballistic Gun 22 | . 28 17 Launcher 1 | . . 1 Naked Turns . | . . . Heaviest Build 13 | 6 10 13 Greatest Support 26 | 26 26 12 Greatest Overweight (x) 2 | . . 2 Average Overweight (x) . | . . . Largest Inventory Capacity 5 | 5 5 5 Average Capacity 5 | 5 5 5 Most Carried 5 | 3 5 5 Average Carried 3 | . 2 3 Final Capacity 5 | 5 5 5 Final Carried 5 | . 5 4 Class Distribution -------------------- 54% | Mutant 45% | Scavenger-Mutant Dominant Class ---------------- Mutant | -10/Materials Scavenger-Mutant | -9/Materials Resources | -11 -10 -9 ----------- Run | Yrd Mat Mat Matter Collected 871 | 186 203 482 Remotely . | . . . Salvage Created 1201 | . 238 963 Parts 88 | . 20 68 Haulers Intercepted 4 | . . 4 Recyclers Shooed 1 | . 1 . Parts Field Recycled . | . . . Retrieved Matter . | . . . Parts Self-Destructed . | . . . Prevented . | . . . Kills | -11 -10 -9 ------- Run | Yrd Mat Mat Combat Hostiles Destroyed 30 | . 7 23 Guns 27 | . 7 20 AOE 3 | . . 3 Classes Destroyed 8 | . 3 5 Worker 1 | . . 1 Hauler 4 | . . 4 Recycler 1 | . 1 . Operator 1 | . . 1 Watcher 4 | . . 4 Swarmer 12 | . 5 7 Grunt 13 | . 2 11 Sentry 5 | . . 5 Best Kill Streak 5 | . 3 5 Combat Bots Only 5 | . 3 5 Max Kills in Single Turn 2 | . 1 2 Gunslinging . | . . . Exploded 2 | . . 2 Melee . | . . . Uniques/NPCs Destroyed . | . . . Combat | -11 -10 -9 -------- Run | Yrd Mat Mat Hostile Shots Fired 143 | . 34 109 Missed 51 | . 10 41 Damage Taken 1309 | . 264 1045 Core 368 | . 53 315 Absorbed by Shields . | . . . Redirected to Shielding 39 | . . 39 Core Remaining (%) 89 | 100 78 . Volleys Fired 110 | . 27 83 Largest 2 | . 2 2 Hottest 43 | . 40 43 Shots Fired 200 | . 54 146 Gun 184 | . 54 130 Cannon . | . . . Launcher 16 | . . 16 Special . | . . . Kinetic 184 | . 54 130 Thermal . | . . . Explosive 16 | . . 16 Electromagnetic . | . . . Robot Hit Streak 12 | . 8 12 Robot Miss Streak 4 | . 4 4 Penetration Max . | . . . Secondary Targets 2 | . . 2 Max Gunslinging Chain 1 | . . 1 Shots Hit Robots 140 | . 29 111 Core Hits 70 | . 13 57 Critical Kills 2 | . . 2 Critical Parts Destroyed 1 | . . 1 Critical Strikes 3 | . . 3 Destroy 3 | . . 3 Melee Attacks . | . . . Impact . | . . . Slashing . | . . . Piercing . | . . . Sneak Attacks . | . . . Combat Hostiles . | . . . Follow-up Attacks . | . . . Damage Inflicted 1929 | . 324 1605 Guns 1424 | . 324 1100 Cannons . | . . . Explosions 505 | . . 505 Melee . | . . . Ramming . | . . . Kinetic 1424 | . 324 1100 Thermal . | . . . Explosive 505 | . . 505 Electromagnetic . | . . . Impact . | . . . Slashing . | . . . Piercing . | . . . Highest Corruption 2 | . . 2 Average Corruption 2 | . . 2 Corruption Purged . | . . . Corruption Blocked . | . . . Effects 2 | . . 2 Message Errors 1 | . . 1 Data Loss (major) 1 | . . 1 Overload Shots . | . . . Overflow Damage 13 | . . 13 Projectiles . | . . . Explosions 13 | . . 13 Melee . | . . . Knockbacks . | . . . Impact . | . . . Kinetic . | . . . Secondary . | . . . Self-Inflicted Damage 215 | . . 215 Shots 4 | . . 4 Rammed . | . . . Targets Rammed . | . . . Kicked . | . . . Crushed . | . . . Highest Temperature 42 | . 16 42 Average Temperature 14 | . 7 15 Received Heat Transfer 324 | . 90 234 Siege Activations . | . . . Robots Corrupted . | . . . Combat Hostiles . | . . . Parts Fried . | . . . Impact Corruptions . | . . . Robots Melted . | . . . Combat Hostiles . | . . . Parts Melted . | . . . Heat Transferred . | . . . Parts Sabotaged . | . . . Parts Stolen . | . . . Parts Stripped . | . . . Power Chain Reactions . | . . . Alert | -11 -10 -9 ------- Run | Yrd Mat Mat Peak Influence 360 | . 184 360 Initial 18 | . . 18 Average 115 | . 49 177 Maximum Alert Level 1 | . . 1 Low Security (%) 76 | 100 100 56 Level 1 23 | . . 43 Level 2 . | . . . Level 3 . | . . . Level 4 . | . . . Level 5 . | . . . High Security . | . . . Max Security . | . . . Squads Dispatched 4 | . 1 3 Investigation 1 | . . 1 Extermination . | . . . Reinforcement 3 | . 1 2 Assault . | . . . Garrison . | . . . Intercept . | . . . Searches Triggered . | . . . Construction Impeded . | . . . Haulers Reinforced . | . . . Active Scanning Responses . | . . . Cargo Convoy Interrupts . | . . . Stealth | -11 -10 -9 --------- Run | Yrd Mat Mat Distress Signals 5 | . . 5 Communications Jammed . | . . . Distress Signals . | . . . Times Spotted 48 | . 16 32 Peak Tracking Total 6 | . 4 6 Tactical Retreats 1 | . 1 . Traps | -11 -10 -9 ------- Run | Yrd Mat Mat Traps Triggered 1 | . . 1 Indirectly . | . . . Trap Hack Attempts . | . . . Triggered . | . . . Disarmed 4 | . . 4 Reprogrammed . | . . . Reused . | . . . Traps Extracted . | . . . Installed . | . . . Triggered . | . . . Machines | -11 -10 -9 ---------- Run | Yrd Mat Mat Machines Disabled 2 | . . 2 Max in Single Turn 1 | . . 1 Machines Repaired . | . . . Machines Dismantled . | . . . Machines Sabotaged . | . . . Overloaded Fab Kills . | . . . Hacking | -11 -10 -9 --------- Run | Yrd Mat Mat Machines Accessed 9 | . 4 5 Terminals 7 | . 3 4 Fabricators . | . . . Repair Stations 1 | . . 1 Recycling Units 1 | . 1 . Scanalyzers . | . . . Garrison Access . | . . . Total Hacks 28 | . 13 15 Successful 17 | . 8 9 Failed 11 | . 5 6 Catastrophic 1 | . 1 . Database Lockouts . | . . . Manual . | . . . Terminals 25 | . 11 14 Fabricators . | . . . Repair Stations 1 | . . 1 Recycling Units 2 | . 2 . Scanalyzers . | . . . Garrison Access . | . . . Terminal Hacks 14 | . 6 8 Prototype ID Bank 2 | . 1 1 Alert Level 3 | . 1 2 Unreport Threat 2 | . . 2 Locate Traps 1 | . 1 . Disarm Traps 1 | . . 1 Dispatch Records 2 | . 1 1 Maintenance Status 1 | . . 1 Hauler Manifests 1 | . 1 . Zone Layout 1 | . 1 . Fabricator Hacks . | . . . Repair Station Hacks 1 | . . 1 Refit 1 | . . 1 Recycling Unit Hacks 2 | . 2 . Report Inventory 1 | . 1 . Retrieve Components 1 | . 1 . Scanalyzer . | . . . Garrison Access Hacks . | . . . Unauthorized Hacks . | . . . Terminals . | . . . Fabricators . | . . . Repair Stations . | . . . Recycling Units . | . . . Scanalyzers . | . . . Garrison Access . | . . . Data Cores Recovered . | . . . Used . | . . . Hacking Detections 8 | . 4 4 Full Trace Events 1 | . . 1 Feedback Events . | . . . Feedback Blocked . | . . . Robot Schematics Acquired . | . . . Robots Built . | . . . Authchips . | . . . Time . | . . . Total Robot Build Rating . | . . . Part Schematics Acquired . | . . . Parts Built . | . . . Authchips . | . . . Time . | . . . Total Part Build Rating . | . . . Parts Repaired . | . . . Time . | . . . Parts Recycled . | . . . Recycled Matter . | . . . Retrieved Matter . | . . . Retrieved Components 1 | . 1 . Parts Scanalyzed . | . . . Part Schematics Acquired . | . . . Parts Damaged . | . . . Bothacking | -11 -10 -9 ------------ Run | Yrd Mat Mat Used RIF Installer . | . . . Robots Hacked . | . . . Non-combat . | . . . Combat . | . . . Robot Hacks Applied . | . . . Relay Couplers Released . | . . . Fabnet Peak Effective % . | . . . Robots Rewired . | . . . Allies Hacked . | . . . Hacks Repelled . | . . . Allies | -11 -10 -9 -------- Run | Yrd Mat Mat Total Allies . | . . . Largest Group . | . . . Highest-Rated Group . | . . . Highest-Rated Ally . | . . . Total Orders . | . . . Ally Attacks . | . . . Total Damage . | . . . Kills . | . . . Allies Corrupted . | . . . Allies Melted . | . . . Intel | -11 -10 -9 ------- Run | Yrd Mat Mat Robot Analysis Total . | . . . Derelict Logs Recovered . | . . . Drone Launches . | . . . Drone Recoveries . | . . . Exploration | -11 -10 -9 ------------- Run | Yrd Mat Mat Turns Passed 1200 | 43 523 634 Spaces Moved 1299 | 39 557 703 Core 5 | 5 . . Treads . | . . . Legs . | . . . Wheels 321 | 34 287 . Hover 122 | . . 122 Flight 851 | . 270 581 Fastest Speed 34 | 50 37 34 Average Speed 55 | 84 63 47 Slowest Speed 200 | 90 90 200 Overloaded Moves . | . . . Propulsion Burnouts . | . . . Robots Hopped . | . . . Cave-ins Triggered . | . . . Exploration Rate (%) 50 | 3 83 65 Regions Visited 2 Branch Regions . Pre-discovered Areas . | . . . Known Exits Taken 1 | . 1 . Unknown Exits Taken 1 | 1 . . Scrap Searched . | . . . Spaces Dug . | . . . Terrain Destroyed 136 | . . 136 Melee . | . . . Projectile . | . . . AOE 136 | . . 136 Terrain Rammed . | . . . Walls Destroyed . | . . . Machines Disabled . | . . . Actions | -11 -10 -9 --------- Run | Yrd Mat Mat Total 1604 | 48 680 876 Wait 105 | . 50 55 Move 1297 | 38 556 703 Hop . | . . . Pick Up 36 | 5 20 11 Fast Attach . | . . . Attach 20 | 5 5 10 Detach 2 | . . 2 Swap 13 | . 9 4 Drop 21 | . 13 8 Fire 110 | . 27 83 Melee . | . . . Ram . | . . . Kick . | . . . Crush . | . . . Escape Stasis . | . . . Rewire . | . . . Trap . | . . . Miscellaneous . | . . . Route ------- -11/Scrapyard -10/Materials (discovered 4 exits: *Mat x2 / *Min x2) -9/Materials (discovered 3 exits: *Mat / *Min x2) History --------- Turn | Location | Event 17 | -11/Scrapyard | Discovered new exit (range 15) 44 | -11/Scrapyard | Entered Materials 186 | -10/Materials | Discovered new exit (range 8) 312 | -10/Materials | Build established: Mutant 366 | -10/Materials | Discovered new exit (range 10) 419 | -10/Materials | Discovered new exit (range 16) 529 | -10/Materials | Discovered new exit (range 14) 555 | -10/Materials | Identified exit to Mines 566 | -10/Materials | Identified exit to Materials 567 | -10/Materials | Entered another Materials area 567 | -9/Materials | Evolved 2 slots: Power x1, Propulsion x1 576 | -9/Materials | Discovered new exit (range 16) 735 | -9/Materials | Discovered new exit (range 16) 737 | -9/Materials | Build established: Scavenger-Mutant 740 | -9/Materials | Identified exit to Materials 854 | -9/Materials | Discovered new exit (range 16) 946 | -9/Materials | Identified exit to Mines 950 | -9/Materials | Core integrity fell below 50% 1027 | -9/Materials | Lost 5 parts (1p2n2w) 1201 | -9/Materials | Self-destructed Last Messages --------------- Adv. EMP Blaster Imp. VTOL Module >>Enumerate(Maintenance) Found 22 registered maintenance bots. 12 Workers 4 Builders 3 Tunnelers 3 Recyclers Downloaded coordinate data. W-16 Scout sends out distress signal. Y-45 Defender destroyed. The unstable cave ceiling collapses. Terminal disabled. Hover Unit destroyed. Destroyed Hover Unit. Rocket Launcher destroyed. Destroyed Rocket Launcher. Backup Propulsion I destroyed. Destroyed Backup Propulsion I. The unstable cave ceiling collapses. Map ----- +----------------------------------------------------+ | ??????????????????????????????????? | | ??????????????????????????????????? | | ??????????????????????????????????? | | ??????????????????????????????????? | | ??????????????????????????????????? | | ?########?????????????????????????? | | ?# """ #??????????????????????#??? | | ?# """ #######??????????????? #??? | | ?# """ # #?????????????? #??? | | ?# # ############## #### | | ?# # | | ?# # | | ??####+## #### | | ?????# #####+#####+########??? | | ?????# ## # #??? ?? | | ?????# ### """ """# #??? ? | | ?????# #?# """[*R"#! ! #????? | | ?????# #?# """ """# #?????? | | ?????# #?# # #??????? | | ???### #?# """ # #??????? | | ???# #?# """ # * #??????? | | ???# #?# """ # ######## | | ???# #?# ] =# !! + [[% | | ???# ##############+#######!# | | ???# #???????????# #????## # | | ??####+## @ #??########## #### # | | ??# ## # # =% | | ??# ## # = | | ??# " ### + [%= | | ??# ] T" ?# # = #[ | | ??# "" ### # # | | ??# ###?# ## ##### # | | ??###### ???######### #???#### | | ??????? ???????????# ?????? | | ??????? ???????????# ????? | | ??????? #???????????# #???? | | ?????? Y ???????????## #???? | | ?????? ???????????? #???? | | ?????? ???????????? #???? | | ?????? ???????????? ???? | | ???????? =*???????????? ## #??? | | ???????????????????????? ###? #??? | | ???????????????????????? ?????#??? | | ????????????????????????""????????? | | ??????????????????????????????????? | | ??????????????????????????????????? | | ??????????????????????????????????? | | ??????????????????????????????????? | | ??????????????????????????????????? | | ??????????????????????????????????? | +----------------------------------------------------+ Best States ------------- Heat Dissipation 35 Energy Generation 17 Energy Capacity 290 Matter Stores 300 Matter Capacity 300 Sight Range 16 Terrain Scan Density 10 Propulsion Shielding 33 Evasion (%) 63 Item Schematics ----------------- None Robot Schematics ------------------ None Fabricated ------------ Nothing Alien Tech Used ----------------- None Achievements -------------- None Challenges ------------ None Game ------ Seed RecoilDirtyRailgun Manual? 0 Play Time 00:30:15 Cumulative 4.8 hours Start 2024.04.03 @ 20:00:54 End 2024.04.03 @ 20:31:29 Sessions 1 Manual Loads 0 Difficulty Rogue Special Mode None Game No. 6 Rogue 6 Adventurer 0 Explorer 0 Win Type - Total 0 Types 0/0/0/0/0/0/0/0/0 Lore% 1 Gallery% 8 Achievement% 8 Wizard Run 0 Options --------- Layout 1 ASCII 0 Keyboard 0 Movement Numpad Keybinds 0 Fullscreen 1 Font 24/Smallcaps Map View 50x35 Zoom Use 0% Tactical HUD 0 Map Filters NONE Filters NONE Steam 1 RUN: f531499a-9bb8-4b6d-9b86-5135fe5c34ec